Cogmind - Beta 10.2 @@@ ROGUE MODE // 2021.01.22 @ 23:05:30 Player: cavemonk Result: Destroyed by 8R-AWN with 8R-AWN's Boregun Performance ------------- Evolutions (1) 500 Regions Visited (5) 1000 Robots Destroyed (105) 525 Value Destroyed (2459) 2459 Prototype IDs (27) 540 Alien Tech Used (0) 0 Bonus (195) 195 TOTAL SCORE: 5219 Bonus ------- High Alert Combat Kills 229 Aligned with FarCom 300 Friendly Fire -334 Cogmind --------- Core Integrity 0/400 Matter 120/300 Energy 174/280 System Corruption 0% Temperature Cool (105) Movement Treading (180) Ox1 Location -9/Exiles Parts ------- > --- POWER (1) -------- Cooled Ion Engine > --- PROPULSION (2) --- Improved Treads Armored Wheel > --- UTILITY (3) ------ Improved Weapon Shielding Medium Armor Plating Medium Armor Plating > --- WEAPON (3) ------- Heavy Assault Rifle Heavy Assault Rifle Heavy Battle Rifle > --- INVENTORY (4) ---- Improved Weapon Shielding Hardened Light Armor Plating Peak State ------------ > --- POWER ------------ Light Neutrino Core > --- PROPULSION ------- Improved Treads Armored Wheel > --- UTILITY ---------- Salvage Targeting Computer Improved Weapon Shielding Medium Armor Plating > --- WEAPON ----------- Heavy Assault Rifle Shotgun Heavy Battle Rifle > --- INVENTORY -------- Improved Weapon Shielding Medium Armor Plating Hardened Light Armor Plating Remote Shield [Rating: 27] Favorites ----------- Power Ion Engine Engine Ion Engine Power Core Light Neutrino Core Propulsion Light Treads Treads Light Treads Wheel Armored Wheel Utility High-capacity Storage Unit Device Improved Terrain Scanner Storage High-capacity Storage Unit Processor Salvage Targeting Computer Protection Medium Armor Plating Weapon Autogun Energy Gun Shock Rifle Energy Cannon EM Pulse Cannon Ballistic Gun Autogun Launcher Rocket Launcher Build | -11 -10 -10 -9 -9 -9 ------- Run | Scr Mat Min Mat Min Exi Slots Evolved 2 | . . . 2 . . Power . | . . . . . . Propulsion . | . . . . . . Utility 1 | . . . 1 . . Weapon 1 | . . . 1 . . Parts Attached 113 | 8 30 1 55 . 19 Power 12 | 1 3 . 6 . 2 Engine 11 | 1 3 . 6 . 1 Core 1 | . . . . . 1 Reactor . | . . . . . . Propulsion 25 | 2 11 . 11 . 1 Treads 18 | 1 7 . 9 . 1 Leg . | . . . . . . Wheel 7 | 1 4 . 2 . . Hover . | . . . . . . Flight . | . . . . . . Utility 28 | 3 5 1 14 . 5 Device 7 | 2 . . 4 . 1 Storage 10 | 1 4 1 4 . . Processor 1 | . . . . . 1 Hackware . | . . . . . . Protection 10 | . 1 . 6 . 3 Artifact . | . . . . . . Weapon 48 | 2 11 . 24 . 11 Energy Gun 4 | . 1 . 3 . . Energy Cannon 13 | . 6 . 7 . . Ballistic Gun 26 | 2 4 . 12 . 8 Ballistic Cannon . | . . . . . . Launcher 5 | . . . 2 . 3 Special Weapon . | . . . . . . Impact Weapon . | . . . . . . Slashing Weapon . | . . . . . . Piercing Weapon . | . . . . . . Special Melee Weapon . | . . . . . . Unidentified Prototypes 4 | . . . 3 . 1 Parts Lost 8 | . . . 8 . . Power . | . . . . . . Propulsion 2 | . . . 2 . . Utility . | . . . . . . Weapon 6 | . . . 6 . . Highest Loss Streak 5 | . . . 5 . . Average Slot Usage (%) 99 | . 99 100 99 100 94 Engine 12 | . 13 14 10 11 10 Treads 19 | . 23 28 17 . 2 Wheel 5 | . 4 . 4 22 19 Storage 23 | . 18 20 27 33 11 Protection 6 | . 8 7 5 . 14 Energy Gun 3 | . . . 2 33 11 Energy Cannon 4 | . 8 . 4 . . Ballistic Gun 22 | . 19 28 25 . 14 Naked Turns . | . . . . . . Heaviest Build 122 | 11 75 75 122 113 113 Greatest Support 40 | 20 40 40 40 24 24 Greatest Overweight (x) 9 | 1 7 1 9 4 4 Average Overweight (x) 1 | . 1 1 2 4 1 Largest Inventory Capacity 28 | 6 20 20 28 28 28 Average Capacity 18 | 5 11 15 24 28 12 Most Carried 28 | 5 14 15 28 28 28 Average Carried 17 | 2 10 12 23 27 11 Final Capacity 28 | 6 12 20 28 28 4 Final Carried 28 | 4 12 15 28 28 2 Class Distribution -------------------- 38% | Mutant 28% | Hauler-Gunner 20% | Hauler-Tank 11% | Hauler-Mutant Dominant Class ---------------- Mutant | -10/Materials Mutant | -10/Mines Hauler-Gunner | -9/Materials Hauler-Gunner | -9/Mines Mutant | -9/Exiles Resources | -11 -10 -10 -9 -9 -9 ----------- Run | Scr Mat Min Mat Min Exi Matter Collected 3486 | 324 768 82 2136 . 176 Remotely 280 | . . . 280 . . Salvage Created 4035 | 137 768 167 2824 100 39 Parts 231 | 8 53 1 154 2 13 Haulers Intercepted 8 | . 2 . 6 . . Recyclers Shooed . | . . . . . . Parts Field Recycled . | . . . . . . Retrieved Matter . | . . . . . . Parts Self-Destructed . | . . . . . . Prevented . | . . . . . . Kills | -11 -10 -10 -9 -9 -9 ------- Run | Scr Mat Min Mat Min Exi Combat Hostiles Destroyed 67 | . 15 . 50 . 2 Guns 47 | . 10 . 37 . . Cannons 10 | . 5 . 5 . . AOE 9 | . . . 7 . 2 Classes Destroyed 16 | 2 5 . 8 . 1 Worker 6 | . . . 6 . . Builder 1 | . . . 1 . . Tunneler 5 | 2 . . 3 . . Hauler 8 | . 2 . 6 . . Recycler 8 | 1 2 2 2 1 . Carrier 1 | . . . 1 . . Mechanic 1 | . . . 1 . . Operator 4 | . 3 . 1 . . Watcher 5 | . 1 . 4 . . Swarmer 13 | . 6 . 7 . . Grunt 37 | . 9 . 28 . . Brawler 3 | . . . 3 . . Duelist 2 | . . . 2 . . Protector 2 | . . . 2 . . Sentry 8 | . . . 8 . . Assembled 4 | . . . . . 4 Best Kill Streak 9 | 2 5 1 9 1 2 Combat Bots Only 6 | . 5 . 6 . 2 Max Kills in Single Turn 4 | 1 1 1 4 1 2 Gunslinging 1 | . . . 1 . . Exploded 2 | . . . 2 . 2 Melee . | . . . . . . Uniques/NPCs Destroyed 1 | . . . . . 1 EX-HEX (-9/Exiles) Combat | -11 -10 -10 -9 -9 -9 -------- Run | Scr Mat Min Mat Min Exi Damage Taken 3038 | . 395 . 2125 . 518 Core 428 | . 12 . 271 . 145 Absorbed by Shields 78 | . . . . . 78 Core Remaining (%) 97 | 100 . 95 . . . Volleys Fired 278 | 11 84 4 158 2 19 Largest 3 | 2 2 2 3 3 3 Hottest 189 | 40 120 46 189 150 79 Shots Fired 666 | 22 139 8 442 6 49 Gun 572 | 22 85 8 404 6 47 Cannon 87 | . 54 . 33 . . Launcher 7 | . . . 5 . 2 Special . | . . . . . . Kinetic 544 | 22 84 8 383 . 47 Thermal 55 | . 55 . . . . Explosive 7 | . . . 5 . 2 Electromagnetic 60 | . . . 54 6 . Robot Hit Streak 17 | 5 17 1 17 3 13 Robot Miss Streak 6 | 2 3 4 6 1 3 Penetration Max . | . . . . . . Secondary Targets 9 | . 1 . 8 . . Max Gunslinging Chain 2 | . 1 . 2 . . Shots Hit Robots 405 | 14 71 2 276 3 39 Core Hits 165 | 5 28 2 110 1 19 Critical Hits 4 | . . . 2 . 2 Critical Kills . | . . . . . . Critical Parts Destroyed 2 | . . . 2 . . Melee Attacks . | . . . . . . Impact . | . . . . . . Slashing . | . . . . . . Piercing . | . . . . . . Sneak Attacks . | . . . . . . Combat Hostiles . | . . . . . . Follow-up Attacks . | . . . . . . Damage Inflicted 7378 | 143 1003 50 5151 55 976 Guns 5599 | 143 739 50 3930 55 682 Cannons 814 | . 264 . 550 . . Explosions 963 | . . . 669 . 294 Melee . | . . . . . . Ramming 2 | . . . 2 . . Kinetic 5357 | 143 726 50 3756 . 682 Thermal 339 | . 277 . 62 . . Explosive 901 | . . . 607 . 294 Electromagnetic 779 | . . . 724 55 . Impact . | . . . . . . Slashing . | . . . . . . Piercing . | . . . . . . Highest Corruption . | . . . . . . Average Corruption . | . . . . . . Corruption Purged . | . . . . . . Overload Shots . | . . . . . . Overflow Damage 69 | . 17 . 52 . . Projectiles 51 | . 17 . 34 . . Explosions 18 | . . . 18 . . Melee . | . . . . . . Knockbacks . | . . . . . . Impact . | . . . . . . Kinetic . | . . . . . . Secondary . | . . . . . . Self-Inflicted Damage 41 | . . . 41 . . Shots 1 | . . . 1 . . Rammed 1 | . . . 1 . . Targets Rammed 1 | . . . 1 . . Kicked . | . . . . . . Crushed . | . . . . . . Highest Temperature 261 | . 261 12 246 75 105 Average Temperature 62 | . 74 7 59 45 46 Received Heat Transfer 993 | . 93 . 900 . . Effects 2 | . 2 . . . . Interference 2 | . 2 . . . . Siege Activations . | . . . . . . Robots Corrupted 2 | . . . 2 . . Combat Hostiles 1 | . . . 1 . . Parts Fried 6 | . . . 6 . . Impact Corruptions . | . . . . . . Robots Melted . | . . . . . . Combat Hostiles . | . . . . . . Parts Melted . | . . . . . . Heat Transferred 692 | . 592 . 100 . . Parts Sabotaged . | . . . . . . Parts Stolen . | . . . . . . Parts Stripped . | . . . . . . Power Chain Reactions 1 | . . . 1 . . Missiles Intercepted . | . . . . . . Alert | -11 -10 -10 -9 -9 -9 ------- Run | Scr Mat Min Mat Min Exi Peak Influence 705 | 15 231 19 705 279 . Initial 274 | . 9 19 . 274 . Average 213 | 10 112 7 349 278 . Maximum Alert Level 3 | . 1 . 3 1 . Low Security (%) 59 | 100 84 100 33 . . Level 1 15 | . 15 . 14 100 . Level 2 23 | . . . 49 . . Level 3 1 | . . . 2 . . Level 4 . | . . . . . . Level 5 . | . . . . . . High Security . | . . . . . . Max Security . | . . . . . . Squads Dispatched 15 | . 5 . 10 . . Investigation 3 | . 2 . 1 . . Extermination . | . . . . . . Reinforcement 8 | . 3 . 5 . . Assault 4 | . . . 4 . . Garrison . | . . . . . . Intercept . | . . . . . . Construction Impeded 2 | . . . 2 . . Haulers Reinforced . | . . . . . . Stealth | -11 -10 -10 -9 -9 -9 --------- Run | Scr Mat Min Mat Min Exi Distress Signals 12 | . 4 . 8 . . Communications Jammed . | . . . . . . Distress Signals . | . . . . . . Times Spotted 145 | . 40 . 99 . 6 Peak Tracking Total 7 | . 6 . 6 . 7 Tactical Retreats 13 | . 1 . 12 . . Traps | -11 -10 -10 -9 -9 -9 ------- Run | Scr Mat Min Mat Min Exi Traps Triggered 3 | . 3 . . . . Indirectly . | . . . . . . Trap Hack Attempts . | . . . . . . Triggered . | . . . . . . Disarmed . | . . . . . . Reprogrammed . | . . . . . . Reused . | . . . . . . Traps Extracted . | . . . . . . Installed . | . . . . . . Triggered . | . . . . . . Machines | -11 -10 -10 -9 -9 -9 ---------- Run | Scr Mat Min Mat Min Exi Machines Disabled 9 | . 4 . 3 . 2 Max in Single Turn 2 | . 1 . 2 . 2 Machines Sabotaged . | . . . . . . Garrisons Compromised . | . . . . . . Overloaded Fab Kills . | . . . . . . Fab Network Shutdowns . | . . . . . . Hacking | -11 -10 -10 -9 -9 -9 --------- Run | Scr Mat Min Mat Min Exi Machines Accessed 23 | . 8 . 14 . 1 Terminals 14 | . 5 . 9 . . Fabricators . | . . . . . . Repair Stations 2 | . 1 . 1 . . Recycling Units 4 | . 2 . 2 . . Scanalyzers 2 | . . . 2 . . Garrison Access . | . . . . . . Total Hacks 67 | . 26 . 40 . 1 Successful 32 | . 14 . 17 . 1 Failed 35 | . 12 . 23 . . Catastrophic 5 | . 1 . 4 . . Database Lockouts . | . . . . . . Manual 42 | . 14 . 27 . 1 Terminals 40 | . 16 . 24 . . Fabricators . | . . . . . . Repair Stations 9 | . 6 . 3 . . Recycling Units 12 | . 4 . 8 . . Scanalyzers 5 | . . . 5 . . Garrison Access . | . . . . . . Terminal Hacks 12 | . 5 . 6 . 1 Part Schematic 1 | . 1 . . . . Branch Access Points 2 | . 1 . 1 . . Terminal Index 2 | . 1 . 1 . . Alert Level 1 | . . . 1 . . Unreport Threat 3 | . . . 3 . . Hauler Manifests 1 | . 1 . . . . Zone Layout 1 | . 1 . . . . EX-Prototype ID Bank 1 | . . . . . 1 Fabricator Hacks . | . . . . . . Repair Station Hacks 7 | . 6 . 1 . . Scan Component 4 | . 3 . 1 . . Repair 3 | . 3 . . . . Recycling Unit Hacks 6 | . 2 . 4 . . Retrieve Matter 3 | . 1 . 2 . . Retrieve Components 3 | . 1 . 2 . . Scanalyzer 5 | . . . 5 . . Insert Component 2 | . . . 2 . . Analyze 3 | . . . 3 . . Garrison Access Hacks . | . . . . . . Unauthorized Hacks 2 | . 1 . 1 . . Terminals 2 | . 1 . 1 . . Track 1 | . 1 . . . . Operators 1 | . . . 1 . . Fabricators . | . . . . . . Repair Stations . | . . . . . . Recycling Units . | . . . . . . Scanalyzers . | . . . . . . Garrison Access . | . . . . . . Data Cores Recovered . | . . . . . . Used . | . . . . . . Hacking Detections 20 | . 6 . 14 . . Full Trace Events 1 | . . . 1 . . Feedback Events . | . . . . . . Feedback Blocked . | . . . . . . Robot Schematics Acquired . | . . . . . . Robots Built . | . . . . . . Matter . | . . . . . . Time . | . . . . . . Total Robot Build Rating . | . . . . . . Part Schematics Acquired 2 | . 1 . 1 . . Parts Built . | . . . . . . Matter . | . . . . . . Time . | . . . . . . Total Part Build Rating . | . . . . . . Parts Repaired 3 | . 3 . . . . Time 90 | . 90 . . . . Parts Recycled . | . . . . . . Recycled Matter . | . . . . . . Retrieved Matter . | . . . . . . Retrieved Components 5 | . 2 . 3 . . Parts Scanalyzed 2 | . . . 2 . . Part Schematics Acquired 1 | . . . 1 . . Parts Damaged . | . . . . . . Bothacking | -11 -10 -10 -9 -9 -9 ------------ Run | Scr Mat Min Mat Min Exi Used RIF Installer . | . . . . . . Robots Hacked . | . . . . . . Non-combat . | . . . . . . Combat . | . . . . . . Robot Hacks Applied . | . . . . . . Relay Couplers Released . | . . . . . . Robots Rewired . | . . . . . . Allies Hacked . | . . . . . . Hacks Repelled . | . . . . . . Allies | -11 -10 -10 -9 -9 -9 -------- Run | Scr Mat Min Mat Min Exi Total Allies 4 | . . 1 . 3 . Largest Group 3 | . . 1 . 3 3 Highest-Rated Group 40 | . . 31 . 40 40 Highest-Rated Ally 31 | . . 31 . 16 16 Total Orders 1 | . . . . . 1 STAY 1 | . . . . . 1 Ally Attacks 17 | . . . . . 17 Total Damage 71 | . . . . . 71 Kills 3 | . . . . . 3 Allies Corrupted . | . . . . . . Allies Melted . | . . . . . . Intel | -11 -10 -10 -9 -9 -9 ------- Run | Scr Mat Min Mat Min Exi Robot Analysis Total . | . . . . . . Derelict Logs Recovered 2 | . . 1 . 1 . Drone Launches . | . . . . . . Drone Recoveries . | . . . . . . Exploration | -11 -10 -10 -9 -9 -9 ------------- Run | Scr Mat Min Mat Min Exi Turns Passed 7850 | 202 2003 1291 3584 307 463 Spaces Moved 3806 | 119 1040 706 1405 225 311 Core 11 | 11 . . . . . Treads 2347 | 72 599 706 970 . . Legs . | . . . . . . Wheels 1448 | 36 441 . 435 225 311 Hover . | . . . . . . Flight . | . . . . . . Fastest Speed 50 | 50 80 180 130 130 90 Average Speed 160 | 128 146 180 180 130 107 Slowest Speed 260 | 160 180 180 260 130 130 Overloaded Moves . | . . . . . . Propulsion Burnouts . | . . . . . . Robots Hopped . | . . . . . . Cave-ins Triggered . | . . . . . . Exploration Rate (%) 63 | 4 99 100 88 50 42 Regions Visited 5 Branch Regions 3 Pre-discovered Areas . | . . . . . . Known Exits Taken 3 | . 1 . 1 1 . Unknown Exits Taken 2 | 1 . 1 . . . Scrap Searched 1 | . . 1 . . . Spaces Dug 23 | . . . 23 . . Terrain Destroyed 134 | . 45 . 77 . 12 Melee . | . . . . . . Projectile 1 | . . . . . 1 AOE 133 | . 45 . 77 . 11 Terrain Rammed . | . . . . . . Walls Destroyed . | . . . . . . Machines Disabled . | . . . . . . Actions | -11 -10 -10 -9 -9 -9 --------- Run | Scr Mat Min Mat Min Exi Total 5073 | 146 1390 721 2172 235 409 Wait 682 | 1 189 5 443 7 37 Move 3801 | 118 1039 705 1404 224 311 Hop . | . . . . . . Pick Up 92 | 6 22 4 57 1 2 Fast Attach 42 | 6 11 1 10 . 14 Attach 22 | 2 1 . 14 . 5 Detach 5 | 1 2 . 2 . . Swap 49 | . 18 . 31 . . Drop 101 | 1 24 2 52 1 21 Fire 278 | 11 84 4 158 2 19 Melee . | . . . . . . Ram . | . . . . . . Kick . | . . . . . . Crush 1 | . . . 1 . . Escape Stasis . | . . . . . . Rewire . | . . . . . . Trap . | . . . . . . Miscellaneous . | . . . . . . Route ------- -11/Scrapyard -10/Materials (discovered 5 exits: *Mat x3 / *Min x2) -10/Mines (discovered 2 exits: *Mat x2) -9/Materials (discovered 3 exits: [*Mat] / *Min / *Sto) -9/Mines (discovered 3 exits: [*Mat x2] / *Exi) -9/Exiles (discovered 1 exit: Min) History --------- Turn | Location | Event 35 | -11/Scrapyard | Discovered new exit (range 16) 203 | -11/Scrapyard | Entered Materials 301 | -10/Materials | Build established: Mutant 380 | -10/Materials | Discovered new exit (range 8) 395 | -10/Materials | Discovered new exit (range 15) 613 | -10/Materials | Identified exit to Mines 789 | -10/Materials | Discovered new exit (range 3) 1508 | -10/Materials | Repaired Lgt. Treads 1535 | -10/Materials | Repaired Lgt. Treads 1575 | -10/Materials | Repaired Lgt. Nuclear Core 1985 | -10/Materials | Discovered new exit (range 16) 2206 | -10/Materials | Entered Mines 2412 | -10/Mines | Discovered new exit (range 5) 2473 | -10/Mines | Discovered new exit (range 14) 2492 | -10/Mines | Received a Mining Laser from a helpful Derelict 2876 | -10/Mines | Received a Rocket Launcher from a helpful Derelict 3142 | -10/Mines | Found a damaged Exp. Sensor Array with a note attached 3148 | -10/Mines | Found Prototype Device 3229 | -10/Mines | Build established: Hauler-Mutant 3497 | -10/Mines | Entered Materials 3497 | -9/Materials | Evolved 2 slots: Utility x1, Weapon x1 3498 | -9/Materials | Identified exit to Mines 3804 | -9/Materials | Build established: Hauler-Tank 5334 | -9/Materials | Identified exit to Storage 5497 | -9/Materials | First assault squad dispatched 5538 | -9/Materials | Build established: Hauler-Gunner 5710 | -9/Materials | Core integrity fell below 50% 5753 | -9/Materials | Lost 5 parts (1n4w) 6630 | -9/Materials | Discovered new exit (range 4) 7081 | -9/Materials | Entered Mines 7098 | -9/Mines | Discovered new exit (range 7) 7109 | -9/Mines | Assisted by bots powering up and referring to "LRC-V3" 7148 | -9/Mines | A weapon hastily lodged in a ceiling crevice suddenly fell to the ground 7170 | -9/Mines | Met a Derelict bent on vengeance 7218 | -9/Mines | Discovered new exit (range 13) 7304 | -9/Mines | Identified exit to Exiles 7370 | -9/Mines | Deemed a non-threat by the Exiles lab entrance 7388 | -9/Mines | Entered Exiles 7388 | -9/Exiles | Accompanied by 3 allies 7389 | -9/Exiles | Identified exit to Mines 7420 | -9/Exiles | Met 8R-AWN 7442 | -9/Exiles | Met EX-HEX 7486 | -9/Exiles | Met EX-BIN 7500 | -9/Exiles | Aligned with FarCom system 7502 | -9/Exiles | Given EX-Vault access code 7531 | -9/Exiles | Opened EX-Vault 7645 | -9/Exiles | Warned to stay clear of 0b10 Research branches 7711 | -9/Exiles | Attacked by the Exiles 7763 | -9/Exiles | Destroyed EX-HEX 7777 | -9/Exiles | Core integrity fell below 20% 7851 | -9/Exiles | Destroyed by 8R-AWN with 8R-AWN's Boregun Last Messages --------------- 07820_ Critical hit. 07820_ HV Slug penetrates Wall. 07822_ Penetrated by HV Slug. 07822_ HV Slug penetrates Wall. 07822_ Penetrated by HV Slug. 07822_ HV Slug penetrates Wall. 07825_ Penetrated by HV Slug. 07825_ HV Slug penetrates Wall. 07825_ HV Slug penetrates Earth. 07827_ Penetrated by HV Slug. 07827_ HV Slug penetrates Wall. 07827_ HV Slug penetrates Earth. 07831_ Penetrated by HV Slug. 07831_ HV Slug penetrates Earth. 07831_ Penetrated by HV Slug. 07831_ HV Slug penetrates Earth. 07835_ Penetrated by HV Slug. 07836_ Dropped Remote Shield. 07837_ Destroyed Prototype Protection. 07839_ Penetrated by HV Slug. Map ----- +----------------------------------------------------+ | | | | | | | | | | | | | | | | | | | | | | | | | ????????????????#########????????????????????????? | | ????????????????#! #????????????????????????? | | ????????????????# [[ #????????????????????????? | | ????????????????# == !!#????????????????????????? | | ????????????????# [!! X#????????????????????????? | | ????????????????## *=!!##????????????????????????? | | ????????????????#X []! #?????????????????????????? | | ????????????????## !]![#?????????????????????????? | | ?????????????????# !=!!#?????????????????????????? | | ?????????????????# !!!!#########?????????????????? | | ?????????????????# !!%!## """""#?????????????????? | | ?????????????????# *!=## """#?????????????????? | | ?????????????????# !!! g[ X""#?????????????????? | | ?????????????????# #;@[ """#?????????????????? | | ???????????####?#" ## " ""#?????????????????? | | ???????????"""""## ###;;####?????????????????? | | ???????????""" ## #?? # #???????????????????? | | ?????????#""X" #?? ## #??????????????????? | | ?????????#" #??##?# #?????????????????? | | ?????????#" ## #??????# #????????????????? | | ?????????#""""""?# #?#######;#???????????????? | | ??????????#"###??# "?#""""""";#??????????????? | | ?????????????????# #?#"""""""# ??????????????? | | ?????????????????# #?#"""""""#? ?????????????? | | ????????????????## ###"" """"#?? ????????????? | | ????????????????#" """"#???????????????? | | ????????????????#" """#???????????????? | | ????????????????#" """#???????????????? | | ????????????????#" """#???????????????? | | ????????????????#" """#???????????????? | | ????????????????#" """#???????????????? | | ????????????????## """"???????????????? | | ?????????????????# """#???????????????? | | ?????????????????#" ] "X" """"???????????????? | | ?????????????????#" """ #???????????????? | | ?????????????????#" """""""""#???????????????? | | ????????????????##" ###########???????????????? | | ???????????????##"" #?????????????????????????? | +----------------------------------------------------+ Best States ------------- Heat Dissipation 28 Energy Generation 19 Energy Capacity 280 Matter Stores 300 Matter Capacity 300 Sight Range 16 Terrain Scan Range 16 Terrain Scan Density 10 Armor Coverage 450 Weapon Shielding 66 Evasion (%) 44 Recoil Reduction 2 Salvage Targeting 1 Item Schematics ----------------- Hcp. Storage Unit | -10/Materials | Hacked Autogun | -9/Materials | Scanalyzed Robot Schematics ------------------ None Fabricated ------------ Nothing Alien Tech Used ----------------- None Achievements -------------- None Challenges ------------ None Game ------ Seed GlidesysBehemothMinigun Manual? 0 Play Time 01:15:12 Cumulative 147.6 hours Start 2021.01.22 @ 21:45:20 End 2021.01.22 @ 23:05:30 Sessions 1 Manual Loads 0 Difficulty Rogue Special Mode None Game No. 94 Rogue 94 Adventurer 0 Explorer 0 Win Type - Total 3 Types 3/0/0/0/0/0/0/0/0 Lore% 34 Gallery% 57 Achievement% 44 Wizard Run 0 Options --------- ASCII 0 Keyboard 0 Movement Mouse Keybinds 0 Fullscreen 2 Font 18/TerminusBold Map View 76x50 Tactical HUD 1 Map Filters NONE Filters NONE Steam 1 RUN: 73f93521-d2d0-4cfa-a08e-4b485552abaa